[Event "December 19 Late 2023"]
[Site "https://www.chess.com"]
[Date "2023.12.19"]
[Round "5"]
[White "Gurevich, Dmitry"]
[Black "Keleberda, Tymur"]
[Result "1-0"]
[Board "90"]
[TimeControl "180+1"]
[WhiteFideId "2000407"]
[BlackFideId "14174294"]
[WhiteElo "2506"]
[BlackElo "2198"]
[WhiteTeam "USA"]
[BlackTeam "CAN"]
[WhiteClock "0:00:05"]
[BlackClock "0:00:00"]

1. d4 {[%clk 0:03:00]}  Nf6 {[%clk 0:02:43]} 2. c4 {[%clk 0:03:00]}  e6 {[%clk 0:02:37]} 3. g3 {[%clk 0:03:00]}  d5 {[%clk 0:02:37]} 4. Bg2 {[%clk 0:03:00]}  Be7 {[%clk 0:02:35]} 5. Nf3 {[%clk 0:03:00]}  dxc4 {[%clk 0:02:36]} 6. Nc3 {[%clk 0:02:53]}  O-O {[%clk 0:02:30]} 7. Ne5 {[%clk 0:02:52]}  Nc6 {[%clk 0:02:29]} 8. Bxc6 {[%clk 0:02:51]}  bxc6 {[%clk 0:02:29]} 9. Nxc6 {[%clk 0:02:51]}  Qe8 {[%clk 0:02:29]} 10. Nxe7+ {[%clk 0:02:49]}  Qxe7 {[%clk 0:02:30]} 11. Qa4 {[%clk 0:02:49]}  Bb7 {[%clk 0:02:28]} 12. O-O {[%clk 0:02:47]}  c5 {[%clk 0:02:21]} 13. Qxc4 {[%clk 0:02:44]}  cxd4 {[%clk 0:02:20]} 14. Qxd4 {[%clk 0:02:44]}  e5 {[%clk 0:02:21]} 15. Qh4 {[%clk 0:02:39]}  h6 {[%clk 0:02:21]} 16. Be3 {[%clk 0:02:36]}  Rfc8 {[%clk 0:02:09]} 17. f3 {[%clk 0:02:31]}  Qe6 {[%clk 0:02:09]} 18. Rac1 {[%clk 0:02:22]}  Rc4 {[%clk 0:02:07]} 19. g4 {[%clk 0:01:41]}  Nxg4 {[%clk 0:02:01]} 20. b3 {[%clk 0:01:41]}  Nxe3 {[%clk 0:01:41]} 21. bxc4 {[%clk 0:01:39]}  Nxf1 {[%clk 0:01:11]} 22. Kxf1 {[%clk 0:01:37]}  Rc8 {[%clk 0:00:55]} 23. Ne4 {[%clk 0:01:35]}  g5 {[%clk 0:00:50]} 24. Qf2 {[%clk 0:01:24]}  Bxe4 {[%clk 0:00:36]} 25. fxe4 {[%clk 0:01:24]}  Qh3+ {[%clk 0:00:32]} 26. Kg1 {[%clk 0:01:17]}  Qg4+ {[%clk 0:00:29]} 27. Qg2 {[%clk 0:01:13]}  Qf4 {[%clk 0:00:29]} 28. Rc3 {[%clk 0:00:53]}  Rd8 {[%clk 0:00:28]} 29. Qf3 {[%clk 0:00:46]}  Rd1+ {[%clk 0:00:22]} 30. Kg2 {[%clk 0:00:42]}  Qh4 {[%clk 0:00:22]} 31. Qf5 {[%clk 0:00:33]}  Qe1 {[%clk 0:00:19]} 32. Rf3 {[%clk 0:00:21]}  Qg1+ {[%clk 0:00:06]} 33. Kh3 {[%clk 0:00:20]}  g4+ {[%clk 0:00:06]} 34. Qxg4+ {[%clk 0:00:20]}  Qxg4+ {[%clk 0:00:07]} 35. Kxg4 {[%clk 0:00:20]}  Rc1 {[%clk 0:00:08]} 36. Kf5 {[%clk 0:00:19]}  Rxc4 {[%clk 0:00:08]} 37. Kxe5 {[%clk 0:00:19]}  Ra4 {[%clk 0:00:08]} 38. a3 {[%clk 0:00:19]}  Kg7 {[%clk 0:00:07]} 39. Rg3+ {[%clk 0:00:17]}  Kf8 {[%clk 0:00:07]} 40. Kf5 {[%clk 0:00:16]}  Ke7 {[%clk 0:00:07]} 41. e5 {[%clk 0:00:16]}  Kf8 {[%clk 0:00:07]} 42. Rc3 {[%clk 0:00:15]}  Kg7 {[%clk 0:00:07]} 43. e4 {[%clk 0:00:13]}  Ra6 {[%clk 0:00:07]} 44. h4 {[%clk 0:00:11]}  Ra4 {[%clk 0:00:07]} 45. h5 {[%clk 0:00:10]}  Ra6 {[%clk 0:00:07]} 46. Rc7 {[%clk 0:00:08]}  Kg8 {[%clk 0:00:04]} 47. Re7 {[%clk 0:00:07]}  Rxa3 {[%clk 0:00:04]} 48. e6 {[%clk 0:00:06]}  Rf3+ {[%clk 0:00:04]} 49. Ke5 {[%clk 0:00:06]}  a5 {[%clk 0:00:03]} 50. Re8+ {[%clk 0:00:05]}  Kg7 {[%clk 0:00:00]} 51. e7 {[%clk 0:00:05]} 1-0

[Event "December 19 Late 2023"]
[Site "https://www.chess.com"]
[Date "2023.12.19"]
[Round "5"]
[White "Bold, Andre"]
[Black "Akhayan, Ruben"]
[Result "0-1"]
[Board "91"]
[TimeControl "180+1"]
[WhiteFideId "16208471"]
[BlackFideId "204439"]
[WhiteElo "2110"]
[BlackElo "2141"]
[WhiteTeam "GER"]
[BlackTeam "BEL"]
[WhiteClock "0:00:58"]
[BlackClock "0:01:41"]

1. Nf3 {[%clk 0:03:00]}  Nf6 {[%clk 0:02:59]} 2. g3 {[%clk 0:02:57]}  g6 {[%clk 0:02:59]} 3. Bg2 {[%clk 0:02:57]}  Bg7 {[%clk 0:03:00]} 4. O-O {[%clk 0:02:58]}  O-O {[%clk 0:03:00]} 5. c4 {[%clk 0:02:58]}  c6 {[%clk 0:03:00]} 6. d4 {[%clk 0:02:51]}  d5 {[%clk 0:03:01]} 7. cxd5 {[%clk 0:02:52]}  cxd5 {[%clk 0:03:00]} 8. Nc3 {[%clk 0:02:53]}  Ne4 {[%clk 0:02:59]} 9. Qb3 {[%clk 0:02:47]}  Nc6 {[%clk 0:02:57]} 10. e3 {[%clk 0:02:23]}  Nxc3 {[%clk 0:02:53]} 11. Qxc3 {[%clk 0:02:20]}  Bf5 {[%clk 0:02:53]} 12. b3 {[%clk 0:02:12]}  Rc8 {[%clk 0:02:51]} 13. Qd2 {[%clk 0:02:06]}  e5 {[%clk 0:02:39]} 14. Bb2 {[%clk 0:01:50]}  e4 {[%clk 0:02:38]} 15. Ne1 {[%clk 0:01:44]}  Qd7 {[%clk 0:02:38]} 16. Nc2 {[%clk 0:01:43]}  Bh3 {[%clk 0:02:34]} 17. Rfc1 {[%clk 0:01:42]}  Bxg2 {[%clk 0:02:34]} 18. Kxg2 {[%clk 0:01:42]}  Qf5 {[%clk 0:02:34]} 19. Ne1 {[%clk 0:01:40]}  h5 {[%clk 0:02:33]} 20. h3 {[%clk 0:01:36]}  Kh7 {[%clk 0:02:09]} 21. b4 {[%clk 0:01:35]}  a6 {[%clk 0:02:08]} 22. a4 {[%clk 0:01:35]}  Rce8 {[%clk 0:02:05]} 23. b5 {[%clk 0:01:35]}  axb5 {[%clk 0:02:06]} 24. axb5 {[%clk 0:01:35]}  Nd8 {[%clk 0:02:03]} 25. Ba3 {[%clk 0:01:35]}  Rg8 {[%clk 0:02:03]} 26. Rc7 {[%clk 0:01:28]}  Ne6 {[%clk 0:02:00]} 27. Rxb7 {[%clk 0:01:22]}  Ng5 {[%clk 0:01:57]} 28. Be7 {[%clk 0:01:02]}  Qxh3+ {[%clk 0:01:48]} 29. Kg1 {[%clk 0:01:00]}  Nf3+ {[%clk 0:01:42]} 30. Nxf3 {[%clk 0:00:59]}  exf3 {[%clk 0:01:42]} 31. Qd3 {[%clk 0:00:58]}  Qg2# {[%clk 0:01:41]} 0-1

[Event "December 19 Late 2023"]
[Site "https://www.chess.com"]
[Date "2023.12.19"]
[Round "5"]
[White "O`Gorman, Tom"]
[Black "Smith, Garrett L"]
[Result "1-0"]
[Board "93"]
[TimeControl "180+1"]
[WhiteFideId "2508249"]
[BlackFideId "2024829"]
[WhiteElo "2288"]
[BlackElo "2376"]
[WhiteTeam "IRL"]
[BlackTeam "USA"]
[WhiteClock "0:00:19"]
[BlackClock "0:00:04"]

1. d4 {[%clk 0:03:00]}  Nf6 {[%clk 0:02:59]} 2. c4 {[%clk 0:03:00]}  g6 {[%clk 0:03:00]} 3. Nc3 {[%clk 0:03:00]}  d5 {[%clk 0:03:00]} 4. cxd5 {[%clk 0:02:58]}  Nxd5 {[%clk 0:03:01]} 5. e4 {[%clk 0:02:59]}  Nxc3 {[%clk 0:03:01]} 6. bxc3 {[%clk 0:02:59]}  Bg7 {[%clk 0:03:02]} 7. Nf3 {[%clk 0:03:00]}  c5 {[%clk 0:03:02]} 8. Be2 {[%clk 0:02:57]}  Nc6 {[%clk 0:02:54]} 9. Be3 {[%clk 0:02:56]}  O-O {[%clk 0:02:49]} 10. O-O {[%clk 0:02:55]}  b6 {[%clk 0:02:48]} 11. d5 {[%clk 0:02:53]}  Na5 {[%clk 0:02:42]} 12. c4 {[%clk 0:02:53]}  f5 {[%clk 0:02:33]} 13. e5 {[%clk 0:02:25]}  Ba6 {[%clk 0:02:31]} 14. Rc1 {[%clk 0:02:23]}  Qb8 {[%clk 0:02:04]} 15. Bf4 {[%clk 0:02:18]}  h6 {[%clk 0:02:05]} 16. h4 {[%clk 0:02:17]}  Rd8 {[%clk 0:01:55]} 17. Qd2 {[%clk 0:02:16]}  Kh7 {[%clk 0:01:55]} 18. Bd3 {[%clk 0:02:13]}  e6 {[%clk 0:01:52]} 19. d6 {[%clk 0:02:06]}  Bb7 {[%clk 0:01:44]} 20. Qe3 {[%clk 0:02:01]}  Bxf3 {[%clk 0:01:39]} 21. Qxf3 {[%clk 0:02:00]}  Qb7 {[%clk 0:01:38]} 22. Qe3 {[%clk 0:01:49]}  Nc6 {[%clk 0:01:38]} 23. Rfd1 {[%clk 0:01:42]}  Rd7 {[%clk 0:01:35]} 24. Be2 {[%clk 0:01:40]}  Nd4 {[%clk 0:01:31]} 25. Rxd4 {[%clk 0:01:38]}  cxd4 {[%clk 0:01:31]} 26. Qxd4 {[%clk 0:01:38]}  Rad8 {[%clk 0:01:29]} 27. Bf3 {[%clk 0:01:29]}  Qa6 {[%clk 0:01:20]} 28. Qd2 {[%clk 0:01:28]}  g5 {[%clk 0:01:05]} 29. hxg5 {[%clk 0:01:19]}  hxg5 {[%clk 0:01:06]} 30. Bxg5 {[%clk 0:01:19]}  Bxe5 {[%clk 0:01:06]} 31. Bxd8 {[%clk 0:01:20]}  Rxd8 {[%clk 0:01:07]} 32. d7 {[%clk 0:01:06]}  Qa4 {[%clk 0:00:58]} 33. Rd1 {[%clk 0:01:02]}  Qxc4 {[%clk 0:00:52]} 34. Qg5 {[%clk 0:01:00]}  Qc7 {[%clk 0:00:49]} 35. Qe7+ {[%clk 0:00:59]}  Kg6 {[%clk 0:00:45]} 36. Qxe6+ {[%clk 0:00:59]}  Bf6 {[%clk 0:00:45]} 37. g3 {[%clk 0:00:53]}  Qe5 {[%clk 0:00:41]} 38. Qc6 {[%clk 0:00:44]}  f4 {[%clk 0:00:39]} 39. g4 {[%clk 0:00:43]}  Kf7 {[%clk 0:00:23]} 40. Kg2 {[%clk 0:00:40]}  Ke7 {[%clk 0:00:18]} 41. Rd2 {[%clk 0:00:36]}  Kf7 {[%clk 0:00:17]} 42. Qc2 {[%clk 0:00:29]}  Qg5 {[%clk 0:00:14]} 43. Qh7+ {[%clk 0:00:27]}  Qg7 {[%clk 0:00:14]} 44. Qh5+ {[%clk 0:00:27]}  Ke7 {[%clk 0:00:14]} 45. Qf5 {[%clk 0:00:24]}  Qf7 {[%clk 0:00:13]} 46. Bd5 {[%clk 0:00:20]}  Qg7 {[%clk 0:00:08]} 47. Qe6+ {[%clk 0:00:20]}  Kf8 {[%clk 0:00:08]} 48. Re2 {[%clk 0:00:20]}  Be7 {[%clk 0:00:07]} 49. Qf5+ {[%clk 0:00:19]}  Bf6 {[%clk 0:00:07]} 50. Qxf4 {[%clk 0:00:19]}  Rxd7 {[%clk 0:00:07]} 51. Bc6 {[%clk 0:00:18]}  Re7 {[%clk 0:00:07]} 52. Qb8+ {[%clk 0:00:18]}  Kf7 {[%clk 0:00:06]} 53. Bd5+ {[%clk 0:00:18]}  Kg6 {[%clk 0:00:07]} 54. Rxe7 {[%clk 0:00:18]}  Qxe7 {[%clk 0:00:06]} 55. Qf4 {[%clk 0:00:19]}  Be5 {[%clk 0:00:06]} 56. Qf5+ {[%clk 0:00:19]}  Kg7 {[%clk 0:00:07]} 57. Be4 {[%clk 0:00:19]}  Qd6 {[%clk 0:00:07]} 58. Qh7+ {[%clk 0:00:19]}  Kf8 {[%clk 0:00:07]} 59. Qxa7 {[%clk 0:00:16]}  Bd4 {[%clk 0:00:08]} 60. Qa8+ {[%clk 0:00:17]}  Ke7 {[%clk 0:00:08]} 61. Qd5 {[%clk 0:00:17]}  Qf6 {[%clk 0:00:07]} 62. Qf5 {[%clk 0:00:17]}  Qxf5 {[%clk 0:00:06]} 63. Bxf5 {[%clk 0:00:17]}  Kf6 {[%clk 0:00:06]} 64. Kg3 {[%clk 0:00:16]}  Bc3 {[%clk 0:00:06]} 65. f4 {[%clk 0:00:17]}  Bd2 {[%clk 0:00:07]} 66. Bc2 {[%clk 0:00:17]}  Bc1 {[%clk 0:00:07]} 67. Bb3 {[%clk 0:00:17]}  Bd2 {[%clk 0:00:07]} 68. Kf3 {[%clk 0:00:18]}  Bc1 {[%clk 0:00:07]} 69. g5+ {[%clk 0:00:18]}  Kg7 {[%clk 0:00:07]} 70. Kg4 {[%clk 0:00:19]}  Bb2 {[%clk 0:00:07]} 71. f5 {[%clk 0:00:19]}  Bc3 {[%clk 0:00:04]} 72. f6+ {[%clk 0:00:19]} 1-0

[Event "December 19 Late 2023"]
[Site "https://www.chess.com"]
[Date "2023.12.19"]
[Round "5"]
[White "Korol, Dimitry"]
[Black "Khater, Sherif"]
[Result "0-1"]
[Board "94"]
[TimeControl "180+1"]
[WhiteFideId "14108003"]
[BlackFideId "2034280"]
[WhiteElo "2262"]
[BlackElo "2543"]
[WhiteTeam "UKR"]
[BlackTeam "USA"]
[WhiteClock "0:00:04"]
[BlackClock "0:00:29"]

1. d4 {[%clk 0:03:00]}  a6 {[%clk 0:02:58]} 2. c4 {[%clk 0:03:00]}  b5 {[%clk 0:02:50]} 3. e4 {[%clk 0:02:44]}  Bb7 {[%clk 0:02:48]} 4. f3 {[%clk 0:02:36]}  bxc4 {[%clk 0:02:44]} 5. Bxc4 {[%clk 0:02:35]}  e6 {[%clk 0:02:45]} 6. d5 {[%clk 0:02:25]}  exd5 {[%clk 0:02:41]} 7. Bxd5 {[%clk 0:02:25]}  Bxd5 {[%clk 0:02:40]} 8. Qxd5 {[%clk 0:02:26]}  Nc6 {[%clk 0:02:40]} 9. Nc3 {[%clk 0:02:21]}  Nf6 {[%clk 0:02:39]} 10. Qc4 {[%clk 0:01:53]}  Nb4 {[%clk 0:02:26]} 11. Qe2 {[%clk 0:01:50]}  Be7 {[%clk 0:02:24]} 12. a3 {[%clk 0:01:47]}  Nc6 {[%clk 0:02:24]} 13. Be3 {[%clk 0:01:45]}  O-O {[%clk 0:02:23]} 14. Rd1 {[%clk 0:01:37]}  Qb8 {[%clk 0:02:20]} 15. Nh3 {[%clk 0:01:31]}  Qb3 {[%clk 0:02:19]} 16. O-O {[%clk 0:01:29]}  Bxa3 {[%clk 0:02:14]} 17. bxa3 {[%clk 0:01:15]}  Qxc3 {[%clk 0:02:14]} 18. Rd3 {[%clk 0:00:56]}  Qc4 {[%clk 0:02:12]} 19. Qd2 {[%clk 0:00:32]}  Qb5 {[%clk 0:02:02]} 20. Bg5 {[%clk 0:00:28]}  Ne5 {[%clk 0:01:37]} 21. Rc3 {[%clk 0:00:28]}  Rfc8 {[%clk 0:01:26]} 22. Bxf6 {[%clk 0:00:27]}  Qb6+ {[%clk 0:01:20]} 23. Nf2 {[%clk 0:00:24]}  Qxf6 {[%clk 0:01:21]} 24. Rfc1 {[%clk 0:00:22]}  c6 {[%clk 0:01:17]} 25. Nd3 {[%clk 0:00:21]}  Qd6 {[%clk 0:01:12]} 26. Qe3 {[%clk 0:00:20]}  Ng6 {[%clk 0:01:10]} 27. h3 {[%clk 0:00:18]}  h6 {[%clk 0:01:08]} 28. Nc5 {[%clk 0:00:18]}  Rab8 {[%clk 0:01:02]} 29. Rd3 {[%clk 0:00:17]}  Qg3 {[%clk 0:01:02]} 30. Nxd7 {[%clk 0:00:16]}  Rb2 {[%clk 0:01:02]} 31. Rd2 {[%clk 0:00:16]}  Rxd2 {[%clk 0:01:00]} 32. Qxd2 {[%clk 0:00:17]}  Nh4 {[%clk 0:00:59]} 33. Kh1 {[%clk 0:00:17]}  Kh8 {[%clk 0:00:55]} 34. Qe2 {[%clk 0:00:15]}  Rd8 {[%clk 0:00:54]} 35. Rd1 {[%clk 0:00:14]}  Ng6 {[%clk 0:00:50]} 36. Nc5 {[%clk 0:00:13]}  Rxd1+ {[%clk 0:00:47]} 37. Qxd1 {[%clk 0:00:14]}  Nf4 {[%clk 0:00:48]} 38. Qd2 {[%clk 0:00:14]}  Qg5 {[%clk 0:00:46]} 39. Nd7 {[%clk 0:00:14]}  Nxh3 {[%clk 0:00:45]} 40. Qxg5 {[%clk 0:00:13]}  Nxg5 {[%clk 0:00:46]} 41. Ne5 {[%clk 0:00:13]}  c5 {[%clk 0:00:45]} 42. Kg1 {[%clk 0:00:12]}  Kg8 {[%clk 0:00:44]} 43. Kf2 {[%clk 0:00:12]}  Ne6 {[%clk 0:00:45]} 44. Ke3 {[%clk 0:00:12]}  Kf8 {[%clk 0:00:45]} 45. f4 {[%clk 0:00:12]}  Ke7 {[%clk 0:00:43]} 46. f5 {[%clk 0:00:12]}  Nd4 {[%clk 0:00:43]} 47. Nd3 {[%clk 0:00:12]}  Kd6 {[%clk 0:00:43]} 48. Kf4 {[%clk 0:00:11]}  f6 {[%clk 0:00:41]} 49. e5+ {[%clk 0:00:10]}  fxe5+ {[%clk 0:00:42]} 50. Nxe5 {[%clk 0:00:11]}  Kd5 {[%clk 0:00:41]} 51. g4 {[%clk 0:00:09]}  c4 {[%clk 0:00:41]} 52. Ng6 {[%clk 0:00:08]}  c3 {[%clk 0:00:41]} 53. Ke3 {[%clk 0:00:08]}  Kc4 {[%clk 0:00:41]} 54. Nf4 {[%clk 0:00:08]}  c2 {[%clk 0:00:39]} 55. Kd2 {[%clk 0:00:07]}  Kb3 {[%clk 0:00:38]} 56. Ne6 {[%clk 0:00:07]}  Kb2 {[%clk 0:00:35]} 57. Nxd4 {[%clk 0:00:07]}  c1=Q+ {[%clk 0:00:35]} 58. Kd3 {[%clk 0:00:08]}  Qf1+ {[%clk 0:00:35]} 59. Ke4 {[%clk 0:00:08]}  Kxa3 {[%clk 0:00:34]} 60. Ne6 {[%clk 0:00:07]}  Qc4+ {[%clk 0:00:32]} 61. Kf3 {[%clk 0:00:07]}  Qc3+ {[%clk 0:00:32]} 62. Kf4 {[%clk 0:00:07]}  a5 {[%clk 0:00:32]} 63. Ke4 {[%clk 0:00:06]}  Kb2 {[%clk 0:00:32]} 64. Nf4 {[%clk 0:00:06]}  a4 {[%clk 0:00:32]} 65. Nd5 {[%clk 0:00:06]}  Qc6 {[%clk 0:00:32]} 66. Ke5 {[%clk 0:00:06]}  a3 {[%clk 0:00:30]} 67. Ne7 {[%clk 0:00:06]}  Qf6+ {[%clk 0:00:30]} 68. Kf4 {[%clk 0:00:06]}  Qxe7 {[%clk 0:00:30]} 69. g5 {[%clk 0:00:06]}  Qxg5+ {[%clk 0:00:30]} 70. Ke5 {[%clk 0:00:06]}  a2 {[%clk 0:00:31]} 71. Ke6 {[%clk 0:00:07]}  a1=Q {[%clk 0:00:31]} 72. Kf7 {[%clk 0:00:07]}  Qa7+ {[%clk 0:00:31]} 73. Kg8 {[%clk 0:00:07]}  Qd8+ {[%clk 0:00:30]} 74. Kh7 {[%clk 0:00:07]}  g5+ {[%clk 0:00:31]} 75. Kg6 {[%clk 0:00:07]}  Qe8+ {[%clk 0:00:31]} 76. Kf6 {[%clk 0:00:04]}  Qd4# {[%clk 0:00:29]} 0-1

[Event "December 19 Late 2023"]
[Site "https://www.chess.com"]
[Date "2023.12.19"]
[Round "5"]
[White "Silva, Kaua Marques"]
[Black "Pace, Christopher"]
[Result "0-1"]
[Board "95"]
[TimeControl "180+1"]
[WhiteFideId "22701168"]
[BlackFideId "2610167"]
[WhiteElo "2199"]
[BlackElo "2360"]
[WhiteTeam "BRA"]
[BlackTeam "CAN"]
[WhiteClock "0:01:03"]
[BlackClock "0:01:11"]

1. d4 {[%clk 0:03:00]}  Nf6 {[%clk 0:02:58]} 2. Nf3 {[%clk 0:02:50]}  g6 {[%clk 0:02:53]} 3. Nc3 {[%clk 0:02:43]}  Bg7 {[%clk 0:02:53]} 4. e4 {[%clk 0:02:44]}  d6 {[%clk 0:02:53]} 5. Be2 {[%clk 0:02:44]}  O-O {[%clk 0:02:53]} 6. O-O {[%clk 0:02:44]}  e5 {[%clk 0:02:45]} 7. h3 {[%clk 0:02:44]}  exd4 {[%clk 0:02:40]} 8. Nxd4 {[%clk 0:02:42]}  Re8 {[%clk 0:02:39]} 9. Bf3 {[%clk 0:02:40]}  Nbd7 {[%clk 0:02:36]} 10. Re1 {[%clk 0:02:40]}  a5 {[%clk 0:02:30]} 11. Nd5 {[%clk 0:02:33]}  Nxd5 {[%clk 0:02:20]} 12. exd5 {[%clk 0:02:30]}  Rxe1+ {[%clk 0:02:21]} 13. Qxe1 {[%clk 0:02:30]}  Bxd4 {[%clk 0:02:21]} 14. c3 {[%clk 0:02:28]}  Bg7 {[%clk 0:02:20]} 15. Bf4 {[%clk 0:02:28]}  Ne5 {[%clk 0:02:20]} 16. Be2 {[%clk 0:02:28]}  Bf5 {[%clk 0:02:16]} 17. Qd2 {[%clk 0:02:28]}  h5 {[%clk 0:02:12]} 18. Bf1 {[%clk 0:02:28]}  Qd7 {[%clk 0:02:03]} 19. Re1 {[%clk 0:02:25]}  Re8 {[%clk 0:01:55]} 20. Re3 {[%clk 0:02:25]}  Qd8 {[%clk 0:01:48]} 21. Re1 {[%clk 0:02:17]}  Nd7 {[%clk 0:01:45]} 22. Bb5 {[%clk 0:02:14]}  Rxe1+ {[%clk 0:01:42]} 23. Qxe1 {[%clk 0:02:15]}  Nb6 {[%clk 0:01:38]} 24. c4 {[%clk 0:02:13]}  a4 {[%clk 0:01:32]} 25. Bc1 {[%clk 0:02:10]}  Bd7 {[%clk 0:01:26]} 26. Bxd7 {[%clk 0:02:08]}  Qxd7 {[%clk 0:01:27]} 27. b3 {[%clk 0:02:06]}  axb3 {[%clk 0:01:27]} 28. axb3 {[%clk 0:02:07]}  Kf8 {[%clk 0:01:27]} 29. Be3 {[%clk 0:02:07]}  Qe8 {[%clk 0:01:22]} 30. Qa5 {[%clk 0:02:07]}  Qe5 {[%clk 0:01:11]} 31. Bxb6 {[%clk 0:01:26]}  cxb6 {[%clk 0:01:11]} 32. Qa8+ {[%clk 0:01:03]}  Qe8 {[%clk 0:01:11]} 0-1

[Event "December 19 Late 2023"]
[Site "https://www.chess.com"]
[Date "2023.12.19"]
[Round "5"]
[White "Gallegos Diaz, Carlos Alberto"]
[Black "Osmak, Yuliia"]
[Result "1-0"]
[Board "98"]
[TimeControl "180+1"]
[WhiteFideId "3900886"]
[BlackFideId "14101602"]
[WhiteElo "2362"]
[BlackElo "2303"]
[WhiteTeam "VEN"]
[BlackTeam "UKR"]
[WhiteClock "0:00:08"]
[BlackClock "0:00:24"]

1. e4 {[%clk 0:02:57]}  b6 {[%clk 0:02:36]} 2. d4 {[%clk 0:02:52]}  Bb7 {[%clk 0:02:36]} 3. Nd2 {[%clk 0:02:51]}  e6 {[%clk 0:02:36]} 4. Bd3 {[%clk 0:02:51]}  Nf6 {[%clk 0:02:36]} 5. Ngf3 {[%clk 0:02:50]}  d5 {[%clk 0:02:36]} 6. Qe2 {[%clk 0:02:49]}  dxe4 {[%clk 0:02:36]} 7. Nxe4 {[%clk 0:02:48]}  Nxe4 {[%clk 0:02:37]} 8. Bxe4 {[%clk 0:02:48]}  Bxe4 {[%clk 0:02:38]} 9. Qxe4 {[%clk 0:02:47]}  Qd5 {[%clk 0:02:39]} 10. Qxd5 {[%clk 0:02:46]}  exd5 {[%clk 0:02:39]} 11. Bf4 {[%clk 0:02:46]}  c6 {[%clk 0:02:35]} 12. O-O-O {[%clk 0:02:44]}  f6 {[%clk 0:02:32]} 13. Rhe1+ {[%clk 0:02:42]}  Kf7 {[%clk 0:02:30]} 14. Re2 {[%clk 0:02:27]}  Nd7 {[%clk 0:02:29]} 15. Rde1 {[%clk 0:02:25]}  g5 {[%clk 0:02:26]} 16. Bg3 {[%clk 0:02:20]}  h5 {[%clk 0:02:24]} 17. h3 {[%clk 0:02:12]}  Kg6 {[%clk 0:02:09]} 18. Re6 {[%clk 0:02:04]}  Rc8 {[%clk 0:01:53]} 19. Bd6 {[%clk 0:01:43]}  Bh6 {[%clk 0:01:45]} 20. Ne5+ {[%clk 0:01:36]}  Nxe5 {[%clk 0:01:43]} 21. dxe5 {[%clk 0:01:34]}  g4+ {[%clk 0:01:33]} 22. Kd1 {[%clk 0:01:33]}  Bg5 {[%clk 0:01:25]} 23. exf6 {[%clk 0:01:23]}  Rh7 {[%clk 0:01:23]} 24. Be7 {[%clk 0:01:07]}  Rf7 {[%clk 0:01:22]} 25. Rd6 {[%clk 0:00:39]}  Kf5 {[%clk 0:01:11]} 26. hxg4+ {[%clk 0:00:38]}  hxg4 {[%clk 0:01:11]} 27. Ree6 {[%clk 0:00:33]}  c5 {[%clk 0:01:09]} 28. Re1 {[%clk 0:00:23]}  d4 {[%clk 0:01:08]} 29. Rd5+ {[%clk 0:00:23]}  Kg6 {[%clk 0:01:08]} 30. Re6 {[%clk 0:00:23]}  Rh8 {[%clk 0:01:03]} 31. Ke2 {[%clk 0:00:22]}  Rh1 {[%clk 0:01:02]} 32. b4 {[%clk 0:00:20]}  Rc1 {[%clk 0:00:56]} 33. Kd3 {[%clk 0:00:18]}  Rd1+ {[%clk 0:00:56]} 34. Kc4 {[%clk 0:00:18]}  Rd2 {[%clk 0:00:57]} 35. Kb3 {[%clk 0:00:18]}  Rxf2 {[%clk 0:00:55]} 36. bxc5 {[%clk 0:00:18]}  bxc5 {[%clk 0:00:56]} 37. Rxc5 {[%clk 0:00:18]}  Rxg2 {[%clk 0:00:55]} 38. Rcc6 {[%clk 0:00:16]}  g3 {[%clk 0:00:54]} 39. Re4 {[%clk 0:00:15]}  Kf5 {[%clk 0:00:52]} 40. Rxd4 {[%clk 0:00:15]}  Rf2 {[%clk 0:00:52]} 41. Rc5+ {[%clk 0:00:15]}  Kg6 {[%clk 0:00:53]} 42. Rg4 {[%clk 0:00:15]}  Rf3+ {[%clk 0:00:53]} 43. c3 {[%clk 0:00:13]}  Rf5 {[%clk 0:00:53]} 44. Rxf5 {[%clk 0:00:11]}  Kxf5 {[%clk 0:00:54]} 45. Rxg3 {[%clk 0:00:11]}  Bf4 {[%clk 0:00:55]} 46. Rf3 {[%clk 0:00:11]}  Ke4 {[%clk 0:00:52]} 47. Rf1 {[%clk 0:00:12]}  Rh7 {[%clk 0:00:51]} 48. Kc4 {[%clk 0:00:12]}  Rf7 {[%clk 0:00:41]} 49. Re1+ {[%clk 0:00:10]}  Kf5 {[%clk 0:00:41]} 50. Kd5 {[%clk 0:00:10]}  Bd2 {[%clk 0:00:40]} 51. Rf1+ {[%clk 0:00:10]}  Kg4 {[%clk 0:00:41]} 52. Ke6 {[%clk 0:00:10]}  Rh7 {[%clk 0:00:30]} 53. f7 {[%clk 0:00:10]}  Bh6 {[%clk 0:00:24]} 54. Rh1 {[%clk 0:00:08]} 1-0

[Event "December 19 Late 2023"]
[Site "https://www.chess.com"]
[Date "2023.12.19"]
[Round "5"]
[White "petr577"]
[Black "Stojanovski, Sandi"]
[Result "1-0"]
[Board "99"]
[TimeControl "180+1"]
[BlackFideId "1403249"]
[WhiteElo "2308"]
[BlackElo "2530"]
[BlackTeam "DEN"]
[WhiteClock "0:01:24"]
[BlackClock "0:00:12"]

1. e4 {[%clk 0:03:00]}  d6 {[%clk 0:02:46]} 2. d4 {[%clk 0:03:00]}  Nf6 {[%clk 0:02:45]} 3. Nc3 {[%clk 0:03:00]}  g6 {[%clk 0:02:44]} 4. Be3 {[%clk 0:03:01]}  Bg7 {[%clk 0:02:44]} 5. h3 {[%clk 0:03:01]}  O-O {[%clk 0:02:44]} 6. Qd2 {[%clk 0:03:02]}  e5 {[%clk 0:02:44]} 7. Nf3 {[%clk 0:02:49]}  exd4 {[%clk 0:02:36]} 8. Nxd4 {[%clk 0:02:48]}  Re8 {[%clk 0:02:35]} 9. Bd3 {[%clk 0:02:46]}  d5 {[%clk 0:02:29]} 10. exd5 {[%clk 0:02:33]}  Nxd5 {[%clk 0:02:30]} 11. Nxd5 {[%clk 0:02:34]}  Bxd4 {[%clk 0:01:44]} 12. Bc4 {[%clk 0:02:18]}  Bxb2 {[%clk 0:01:37]} 13. O-O {[%clk 0:02:18]}  c6 {[%clk 0:01:34]} 14. Bg5 {[%clk 0:02:12]}  Qd7 {[%clk 0:01:07]} 15. Bf6 {[%clk 0:01:58]}  cxd5 {[%clk 0:01:02]} 16. Bxb2 {[%clk 0:01:57]}  dxc4 {[%clk 0:01:00]} 17. Qc3 {[%clk 0:01:45]}  Kf8 {[%clk 0:00:34]} 18. Rae1 {[%clk 0:01:24]}  Re6 {[%clk 0:00:25]} 19. Qh8+ {[%clk 0:01:23]}  Ke7 {[%clk 0:00:12]} 20. Ba3+ {[%clk 0:01:24]} 1-0

[Event "December 19 Late 2023"]
[Site "https://www.chess.com"]
[Date "2023.12.19"]
[Round "5"]
[White "Srdanovic, Jovana"]
[Black "Polster, Christian"]
[Result "0-1"]
[Board "101"]
[TimeControl "180+1"]
[WhiteFideId "954810"]
[BlackFideId "12965081"]
[WhiteElo "2123"]
[BlackElo "2141"]
[WhiteTeam "SRB"]
[BlackTeam "GER"]
[WhiteClock "0:02:42"]
[BlackClock "0:01:04"]

1. d4 {[%clk 0:02:59]}  Nf6 {[%clk 0:02:53]} 2. c4 {[%clk 0:02:59]}  c5 {[%clk 0:02:52]} 3. d5 {[%clk 0:03:00]}  b5 {[%clk 0:02:52]} 4. cxb5 {[%clk 0:03:01]}  a6 {[%clk 0:02:51]} 5. e3 {[%clk 0:02:58]}  g6 {[%clk 0:02:51]} 6. Nc3 {[%clk 0:02:58]}  Bg7 {[%clk 0:02:51]} 7. e4 {[%clk 0:02:58]}  O-O {[%clk 0:02:49]} 8. a4 {[%clk 0:02:59]}  d6 {[%clk 0:02:39]} 9. Be2 {[%clk 0:02:58]}  e6 {[%clk 0:02:24]} 10. Nf3 {[%clk 0:02:57]}  exd5 {[%clk 0:02:18]} 11. exd5 {[%clk 0:02:58]}  axb5 {[%clk 0:02:15]} 12. Nxb5 {[%clk 0:02:55]}  Bb7 {[%clk 0:02:08]} 13. Nc3 {[%clk 0:02:54]}  Nbd7 {[%clk 0:02:01]} 14. O-O {[%clk 0:02:53]}  Nb6 {[%clk 0:02:00]} 15. Bg5 {[%clk 0:02:52]}  h6 {[%clk 0:02:00]} 16. Bh4 {[%clk 0:02:51]}  g5 {[%clk 0:01:58]} 17. Bg3 {[%clk 0:02:52]}  Nbxd5 {[%clk 0:01:57]} 18. h4 {[%clk 0:02:48]}  Nxc3 {[%clk 0:01:48]} 19. bxc3 {[%clk 0:02:49]}  g4 {[%clk 0:01:48]} 20. Nh2 {[%clk 0:02:49]}  Ne4 {[%clk 0:01:38]} 21. Nxg4 {[%clk 0:02:48]}  Nxc3 {[%clk 0:01:14]} 22. Qd2 {[%clk 0:02:47]}  f5 {[%clk 0:01:06]} 23. Nxh6+ {[%clk 0:02:43]}  Kh7 {[%clk 0:01:06]} 24. Qxc3 {[%clk 0:02:42]}  Bxc3 {[%clk 0:01:04]} 0-1